bitfinex/quotes_SOLUSD_20241220
["timestamp","ask_amount","ask_price","bid_price","bid_amount"]
[1734686221554,42.94542906,180.92,180.83,0.12549]
[1734686221756,42.94542906,180.92,180.83,42.94542906]
[1734686222272,42.94542906,180.9,180.84,23.776884]
[1734686222676,42.94542906,180.86,180.78,13.8282]
[1734686222879,42.94542906,180.84,180.76,0.82953517]
[1734686223064,42.94542906,180.84,180.75,42.94542906]
[1734686223378,42.94542906,180.8,180.72,0.82958268]
[1734686223563,42.94542906,180.78,180.71,0.82975936]
[1734686223881,42.94542906,180.78,180.7,13.8349]
[1734686224093,42.94542906,180.8,180.71,42.94542906]
[1734686224254,42.94542906,180.9,180.7,13.8349]
[1734686224255,42.94542906,180.78,180.7,14.66471595]
[1734686224456,42.94542906,180.78,180.7,13.8349]
[1734686224656,42.94542906,180.8,180.71,42.94542906]
[1734686224870,42.94542906,180.8,180.72,13.95899]
[1734686225075,42.94542906,180.8,180.73,42.94542906]
[1734686225269,42.94542906,180.82,180.73,42.94542906]
[1734686225574,42.94542906,180.8,180.72,13.8335]
[1734686225891,42.94542906,180.78,180.69,51.07202906]
[1734686226101,46.23395123,180.9,180.75,42.94542906]
[1734686226102,42.94542906,180.84,180.75,42.94542906]
[1734686226289,42.94542906,180.82,180.73,42.94542906]
[1734686226598,42.94542906,180.8,180.73,42.94542906]
[1734686226802,42.94542906,180.86,180.77,42.94542906]
[1734686227003,42.94542906,180.88,180.79,42.94542906]
[1734686227170,42.94542906,180.88,180.8,0.12549]
[1734686227363,42.94542906,180.84,180.77,13.8293]
[1734686227570,42.94542906,180.84,180.77,56.77472906]
[1734686227785,42.94542906,180.8,180.71,49.91472335]
[1734686227998,42.94542906,180.8,180.72,14.66331941]
[1734686228296,42.94542906,180.8,180.73,0.12549]
[1734686228499,42.94542906,180.86,180.78,0.12549]
[1734686228670,42.94542906,180.86,180.79,42.94542906]
[1734686229000,42.94542906,180.8,180.72,13.8335]
[1734686229176,42.94542906,180.82,180.73,42.94542906]
[1734686229780,42.94542906,180.84,180.75,42.94542906]
[1734686229972,42.94542906,180.88,180.8,20.0]
[1734686230279,42.94542906,180.84,180.8,20.0]
[1734686230599,42.94542906,180.86,180.8,20.0]
[1734686230807,42.94542906,180.84,180.8,20.0]
[1734686231110,42.94542906,180.82,180.72,13.8335]
[1734686231297,42.94542906,180.76,180.72,13.8335]
[1734686231598,42.94542906,180.8,180.72,13.8335]
[1734686231782,42.94542906,180.74,180.68,13.8364]
[1734686232180,42.94542906,180.78,180.71,42.94542906]
[1734686232412,42.94542906,180.76,180.68,13.8364]
[1734686233005,42.94542906,180.74,180.68,13.8364]
[1734686233214,23.776884,180.91,180.72,0.12549]
[1734686233391,42.94542906,180.78,180.69,42.94542906]
[1734686233594,42.94542906,180.82,180.73,42.94542906]
[1734686233799,42.94542906,180.86,180.77,42.94542906]
[1734686234113,42.94542906,180.88,180.8,23.902374]
[1734686234409,42.94542906,180.86,180.81,20.0]
[1734686234807,42.94542906,180.82,180.76,23.776884]
[1734686235011,42.94542906,180.8,180.76,20.0]
[1734686235211,42.94542906,180.82,180.76,20.0]
[1734686235386,42.94542906,180.86,180.78,62.94542906]
[1734686235588,42.94542906,180.9,180.82,42.94542906]
[1734686235787,42.94542906,180.92,180.87,20.0]
[1734686236083,42.94542906,180.94,180.89,20.0]
[1734686236285,42.94542906,180.96,180.89,20.0]
[1734686236490,42.94542906,180.96,180.91,20.0]
[1734686236717,42.94542906,180.94,180.89,20.0]
[1734686236910,21.4037,181.15,180.95,20.0]
[1734686237207,12.4145,181.18,180.88,12.24329]
[1734686237208,2.20246635,181.16,181.03,20.0]
[1734686237392,42.94542906,181.1,181.03,20.0]
[1734686237580,42.94542906,181.1,181.01,42.94542906]
[1734686237783,42.94542906,181.06,180.98,23.776884]
[1734686237994,42.94542906,181.06,180.97,42.94542906]
[1734686238179,42.94542906,181.08,180.99,42.94542906]
[1734686238379,42.94542906,181.08,181.01,42.94542906]
[1734686238583,42.94542906,181.06,180.97,62.94542906]
[1734686238815,42.94542906,181.04,180.97,42.94542906]
[1734686239112,42.94542906,181.02,180.93,42.94542906]
[1734686239287,42.94542906,180.98,180.89,42.94542906]
[1734686239483,42.94542906,180.96,180.89,56.76522906]
[1734686239720,42.94542906,180.96,180.85,0.82890536]
[1734686239721,42.94542906,180.94,180.85,42.94542906]
[1734686239934,42.94542906,180.98,180.89,42.94542906]
[1734686240092,42.94542906,180.96,180.87,42.94542906]
[1734686240286,42.94542906,180.94,180.87,42.94542906]
[1734686240490,42.94542906,180.96,180.87,42.94542906]
[1734686240698,42.94542906,180.92,180.84,7.6702]
[1734686240919,42.94542906,180.96,180.87,42.94542906]
[1734686241098,42.94542906,180.98,180.89,42.94542906]
[1734686241297,42.94542906,181.02,180.95,42.94542906]
[1734686241499,42.94542906,181.04,180.97,42.94542906]
[1734686241704,42.94542906,181.06,180.97,42.94542906]
[1734686241909,42.94542906,181.02,180.93,66.72231306]
[1734686242105,42.94542906,181.02,180.93,42.94542906]
[1734686242313,42.94542906,181.04,180.95,42.94542906]
[1734686242498,42.94542906,181.04,180.9,42.94542906]
[1734686242499,42.94542906,181.08,180.99,42.94542906]
[1734686243127,42.94542906,181.1,181.01,42.94542906]
[1734686243305,42.94542906,181.12,181.06,20.0]
[1734686243649,42.94542906,181.18,181.12,20.0]
[1734686243825,56.02292906,181.26,181.12,20.0]
[1734686243826,42.94542906,181.2,181.12,20.0]
[1734686244032,42.94542906,181.18,181.12,20.0]
[1734686244230,42.94542906,181.18,181.1,23.776884]
[1734686244416,42.94542906,181.16,181.07,62.94542906]
[1734686244725,42.94542906,181.18,181.09,42.94542906]
[1734686244932,3.26963349,181.25,181.05,20.0]
[1734686244933,42.94542906,181.11,181.05,20.0]
[1734686245223,42.94542906,181.15,181.06,66.72231306]
[1734686245435,42.94542906,181.13,181.04,42.94542906]
[1734686245597,42.94542906,181.11,181.03,23.776884]
[1734686246000,42.94542906,181.15,181.06,42.94542906]
[1734686246217,42.94542906,181.19,181.1,42.94542906]
[1734686246434,42.94542906,181.21,181.13,23.776884]
[1734686246727,42.94542906,181.17,181.0,36.96929429]
[1734686246928,46.30174021,181.26,181.02,13.8106]
[1734686247131,42.94542906,181.11,181.02,56.75602906]
[1734686247304,42.94542906,181.11,181.02,42.94542906]
[1734686247515,42.94542906,181.07,180.98,60.09832599]
[1734686247714,42.94542906,181.11,181.02,42.94542906]
[1734686248018,42.94542906,181.07,180.98,56.75892906]
[1734686248824,42.94542906,181.05,180.96,55.52442906]
[1734686249025,42.94542906,181.07,180.98,42.94542906]
[1734686249222,42.94542906,181.09,181.0,42.94542906]
[1734686249548,42.94542906,181.11,181.02,42.94542906]
[1734686249929,42.94542906,181.09,181.0,42.94542906]
[1734686250137,42.94542906,181.13,181.05,20.12549]
[1734686250317,42.94542906,181.15,181.06,42.94542906]
[1734686250516,42.94542906,181.15,181.07,23.776884]
[1734686250721,42.94542906,181.17,181.1,20.0]
[1734686250917,42.94542906,181.21,181.12,42.94542906]
[1734686251124,27.44791314,181.39,181.12,42.94542906]
[1734686251125,3.37543722,181.32,181.2,42.94542906]
[1734686251321,42.94542906,181.32,181.23,20.0]
[1734686251540,13.7802,181.42,181.27,20.0]
[1734686251541,42.94542906,181.34,181.27,20.0]
[1734686252114,42.94542906,181.34,181.26,42.94542906]
[1734686252451,42.94542906,181.34,181.27,20.0]
[1734686252754,42.94542906,181.35,181.21,42.94542906]
[1734686252923,42.94542906,181.28,181.22,20.0]
[1734686253322,42.94542906,181.26,181.19,13.7969]
[1734686253625,42.94542906,181.26,181.13,19.6023]
[1734686253626,42.94542906,181.22,181.15,13.8006]
[1734686253827,42.94542906,181.24,181.15,56.74602906]
[1734686254047,42.94542906,181.26,181.17,42.94542906]
[1734686254218,42.94542906,181.28,181.19,42.94542906]
[1734686254727,42.94542906,181.32,181.23,42.94542906]
[1734686254933,42.94542906,181.34,181.28,20.0]
[1734686255264,42.94542906,181.38,181.3,20.0]
[1734686255436,42.94542906,181.4,181.32,13.7876]
[1734686255753,42.94542906,181.42,181.36,20.0]
[1734686256245,42.94542906,181.53,181.36,20.0]
[1734686256246,42.94542906,181.44,181.36,20.0]
[1734686256442,42.94542906,181.5,181.42,20.0]
[1734686256658,42.94542906,181.54,181.46,20.0]
[1734686256962,0.7051352,181.56,181.52,20.0]
[1734686257334,43.65056426,181.56,181.52,20.0]
[1734686257651,0.7051352,181.56,181.52,20.0]
[1734686257955,0.7051352,181.56,181.52,33.7725]
[1734686258158,43.65056426,181.56,181.52,20.0]
[1734686258456,43.65056426,181.56,181.5,20.0]
[1734686258673,0.7051352,181.56,181.5,20.0]
[1734686258964,0.7051352,181.56,181.55,20.0]
[1734686259129,3.52e-05,181.56,181.55,20.0]
[1734686259551,3.52e-05,181.56,181.55,57.547184]
[1734686259751,3.52e-05,181.56,181.55,57.672674]
[1734686259955,0.7051352,181.74,181.63,20.0]
[1734686260157,0.7051352,181.74,181.68,42.94542906]
[1734686260659,0.7051352,181.74,181.7,42.94542906]
[1734686261050,0.7051352,181.74,181.73,20.0]
[1734686261862,0.7051352,181.74,181.7,42.94542906]
[1734686262238,42.94542906,181.73,181.67,20.0]
[1734686262472,0.7051352,181.74,181.68,20.0]
[1734686262676,0.7051352,181.74,181.69,43.776884]
[1734686262981,0.7051352,181.74,181.73,20.0]
[1734686263680,3.52e-05,181.74,181.73,43.902374]
[1734686263863,42.51474941,181.85,181.74,57.658274]
[1734686264062,42.51474941,181.85,181.8,20.0]
[1734686264258,42.51474941,181.85,181.75,42.51474941]
[1734686264564,0.7051352,181.92,181.88,20.0]
[1734686264773,0.7051352,181.92,181.86,23.902374]
[1734686264774,3.52e-05,181.92,181.91,66.29163341]
[1734686264977,3.52e-05,181.92,181.91,67.11586276]
[1734686265478,42.51474941,182.08,181.96,23.902374]
[1734686265685,42.51474941,182.06,181.96,42.51474941]
[1734686266055,42.51474941,182.04,181.94,42.51474941]
[1734686266382,42.51474941,182.0,181.92,42.51474941]
[1734686266587,42.51474941,181.96,181.86,42.51474941]
[1734686266795,42.51474941,181.92,181.84,42.51474941]
[1734686266958,42.51474941,181.9,181.82,42.51474941]
[1734686267163,42.51474941,181.88,181.8,42.51474941]
[1734686267368,42.51474941,181.88,181.78,42.51474941]
[1734686267580,42.51474941,181.86,181.76,42.51474941]
[1734686267763,20.0,181.94,181.78,42.51474941]
[1734686267961,42.51474941,181.89,181.8,42.51474941]
[1734686268292,42.51474941,181.93,181.84,42.51474941]
[1734686268592,42.51474941,181.95,181.86,42.51474941]
[1734686268755,42.51474941,181.95,181.84,42.51474941]
[1734686268958,42.51474941,181.93,181.84,42.51474941]
[1734686269385,42.51474941,181.91,181.82,42.51474941]
[1734686269790,42.51474941,181.93,181.84,42.51474941]
[1734686270677,42.51474941,181.93,181.77,0.82483303]
[1734686270678,42.51474941,181.93,181.82,42.51474941]
[1734686270876,42.51474941,181.91,181.82,42.51474941]
[1734686271699,42.51474941,181.93,181.82,42.51474941]
[1734686272006,42.51474941,181.89,181.8,42.51474941]
[1734686272304,23.776884,181.97,181.78,42.51474941]
[1734686272305,42.51474941,181.87,181.78,42.51474941]
[1734686272507,42.51474941,181.81,181.72,42.51474941]
[1734686272683,42.51474941,181.79,181.7,56.27344941]
[1734686272881,42.51474941,181.85,181.76,42.51474941]
[1734686273288,42.51474941,181.91,181.8,42.51474941]
[1734686273596,42.51474941,181.98,181.88,42.51474941]
[1734686273896,42.51474941,181.96,181.86,42.51474941]
[1734686274103,42.51474941,181.94,181.86,42.51474941]
[1734686274278,42.51474941,181.9,181.82,42.51474941]
[1734686274482,42.51474941,181.92,181.84,42.51474941]
[1734686274695,42.51474941,181.94,181.87,20.0]
[1734686274904,42.51474941,181.96,181.89,20.0]
[1734686275083,42.51474941,181.9,181.82,42.51474941]
[1734686275284,42.51474941,181.9,181.83,20.0]
[1734686275592,0.7051352,182.11,181.89,0.12549]
[1734686275793,0.7051352,182.11,181.95,42.51474941]
[1734686275996,42.51474941,182.05,181.95,42.51474941]
[1734686276305,42.51474941,182.03,181.93,42.51474941]
[1734686276503,42.51474941,182.03,181.95,42.51474941]
[1734686276804,42.51474941,182.03,181.96,20.0]
[1734686277005,42.51474941,182.05,181.97,42.51474941]
[1734686277205,42.51474941,182.05,181.92,13.7419]
[1734686277206,42.51474941,182.03,181.95,42.51474941]
[1734686277534,42.51474941,181.97,181.87,13.7454]
[1734686277711,42.51474941,181.97,181.87,56.26014941]
[1734686278027,42.51474941,181.97,181.89,42.51474941]
[1734686278420,42.51474941,181.99,181.91,42.51474941]
[1734686278603,42.51474941,181.99,181.89,42.51474941]
[1734686278802,42.51474941,181.97,181.89,42.51474941]
[1734686279226,42.51474941,181.99,181.89,42.51474941]
[1734686279434,42.51474941,181.99,181.91,42.51474941]
[1734686279643,42.51474941,182.02,181.93,42.51474941]
[1734686279816,42.51474941,182.04,181.96,20.0]
[1734686280131,42.51474941,182.06,181.97,42.51474941]
[1734686280306,42.51474941,182.06,181.96,20.0]
[1734686280307,42.51474941,182.04,181.96,43.33898793]
[1734686280505,42.51474941,182.02,181.95,20.0]
[1734686280708,42.51474941,182.0,181.92,56.25664941]
[1734686281014,42.51474941,182.02,181.92,56.25664941]
[1734686281212,42.51474941,182.0,181.92,56.25664941]
[1734686281819,42.51474941,182.0,181.92,42.51474941]
[1734686282010,42.51474941,182.07,181.83,42.51474941]
[1734686282011,42.51474941,181.93,181.83,42.51474941]
[1734686282227,42.51474941,181.98,181.81,42.51474941]
[1734686282228,42.51474941,181.9,181.81,42.51474941]
[1734686282415,42.51474941,181.92,181.83,42.51474941]
[1734686282617,42.51474941,181.9,181.81,42.51474941]
[1734686282838,42.51474941,181.96,181.87,42.51474941]
[1734686283009,42.51474941,181.98,181.89,42.51474941]
[1734686283408,42.51474941,181.96,181.89,42.51474941]
[1734686283709,42.51474941,181.96,181.87,42.51474941]
[1734686283906,42.51474941,181.94,181.85,56.26224941]
[1734686284131,42.51474941,181.9,181.81,56.26514941]
[1734686284813,42.51474941,181.88,181.79,50.64144941]
[1734686285539,42.51474941,181.93,181.83,42.51474941]
[1734686285740,42.51474941,181.95,181.87,42.51474941]
[1734686285915,42.51474941,181.97,181.89,42.51474941]
[1734686286345,42.51474941,181.95,181.87,42.51474941]
[1734686286651,42.51474941,181.95,181.88,20.0]
[1734686286807,42.51474941,181.93,181.88,20.0]
[1734686287144,42.51474941,181.91,181.86,20.0]
[1734686287325,42.51474941,181.93,181.85,42.51474941]
[1734686288945,42.51474941,181.93,181.86,13.7468]
[1734686289152,42.51474941,181.95,181.89,20.0]
[1734686289319,42.51474941,181.95,181.9,20.0]
[1734686289733,42.51474941,181.93,181.9,20.0]
[1734686289934,42.51474941,181.95,181.89,20.0]
[1734686290138,42.51474941,181.93,181.89,20.0]
[1734686290621,42.51474941,181.93,181.82,3.32904501]
[1734686290622,42.51474941,181.91,181.79,42.51474941]
[1734686290945,42.51474941,181.98,181.75,42.51474941]
[1734686290946,42.51474941,181.83,181.75,42.51474941]
[1734686291246,42.51474941,181.89,181.69,37.5453]
[1734686291247,42.51474941,181.81,181.71,42.51474941]
[1734686291418,42.51474941,181.79,181.69,50.06004941]
[1734686291621,42.51474941,181.75,181.67,55.07464941]
[1734686291822,42.51474941,181.75,181.67,12.5599]
[1734686292016,44.7156635,181.89,181.69,42.51474941]
[1734686292017,42.51474941,181.78,181.69,42.51474941]
[1734686292324,42.51474941,181.78,181.68,13.7604]
[1734686292325,42.51474941,181.74,181.68,13.7604]
[1734686292759,42.51474941,181.78,181.69,42.51474941]
[1734686293528,42.51474941,181.72,181.64,13.7631]
[1734686293734,42.51474941,181.68,181.59,42.51474941]
[1734686293933,42.51474941,181.72,181.63,42.51474941]
[1734686294134,42.51474941,181.8,181.6,14.59208842]
[1734686294135,42.51474941,181.74,181.65,42.51474941]
[1734686294436,42.51474941,181.76,181.69,42.51474941]
[1734686294835,42.51474941,181.76,181.67,42.51474941]
[1734686295169,3.36220922,181.84,181.67,42.51474941]
[1734686295464,42.51474941,181.8,181.71,42.51474941]
[1734686295663,42.51474941,181.74,181.66,13.7613]
[1734686295851,42.51474941,181.72,181.63,42.51474941]
[1734686296172,42.51474941,181.72,181.65,42.51474941]
[1734686296372,42.51474941,181.72,181.63,0.82565411]
[1734686296373,42.51474941,181.72,181.63,42.51474941]
[1734686296864,42.51474941,181.72,181.64,13.7634]
[1734686297252,42.51474941,181.72,181.65,42.51474941]
[1734686297436,42.51474941,181.74,181.68,20.0]
[1734686297637,42.51474941,181.74,181.67,42.51474941]
[1734686297837,42.51474941,181.76,181.67,42.51474941]
[1734686298070,13.7463,181.87,181.64,14.5889919]
[1734686298071,42.51474941,181.85,181.78,20.0]
[1734686298554,42.51474941,181.83,181.73,42.51474941]
[1734686298743,42.51474941,181.81,181.74,13.7555]
[1734686299067,42.51474941,181.83,181.75,42.51474941]
[1734686299270,13.7352,182.02,181.79,62.64023941]
[1734686299439,42.51474941,181.91,181.84,20.0]
[1734686299936,42.51474941,181.87,181.82,20.0]
[1734686300154,13.1221,182.15,181.89,0.12549]
[1734686300354,42.51474941,182.0,181.93,20.0]
[1734686300554,42.51474941,182.02,181.94,42.51474941]
[1734686300858,42.51474941,182.0,181.93,20.82415141]
[1734686301186,42.51474941,182.02,181.95,20.0]
[1734686301480,42.51474941,182.0,181.92,42.51474941]
[1734686302667,42.51474941,182.0,181.93,13.7415]
[1734686302868,42.51474941,182.02,181.94,42.51474941]
[1734686303174,42.51474941,182.02,181.94,43.33903177]
[1734686303349,42.51474941,182.02,181.94,42.51474941]
[1734686303800,42.51474941,182.07,181.93,13.7415]
[1734686303801,42.51474941,182.0,181.93,13.7415]
[1734686304782,42.51474941,182.04,181.96,56.25394941]
[1734686304952,42.51474941,182.06,181.99,20.0]
[1734686305152,26.6205,182.23,182.03,20.0]
[1734686305483,12.9013,182.23,182.04,0.12549]
[1734686305678,12.9013,182.23,181.99,20.82397074]
[1734686305980,17.01265333,182.19,181.99,20.0]
[1734686306289,42.51474941,182.05,181.97,42.51474941]
[1734686307153,2.16211646,182.15,181.97,42.51474941]
[1734686307486,42.51474941,182.06,181.99,42.51474941]
[1734686307709,56.23944941,182.16,181.99,42.51474941]
[1734686307710,42.51474941,182.08,181.99,42.51474941]
[1734686308072,42.51474941,182.08,182.02,20.0]
[1734686308269,42.51474941,182.1,182.02,20.0]
[1734686308468,42.51474941,182.08,182.02,20.0]
[1734686309095,42.51474941,182.1,182.04,20.0]
[1734686309401,42.51474941,182.08,182.04,20.0]
[1734686309563,42.51474941,182.06,181.99,42.51474941]
[1734686309985,42.51474941,182.06,181.99,13.7363]
[1734686310703,2.14938523,182.2,182.04,42.51474941]
[1734686311000,42.51474941,182.08,182.02,20.0]
[1734686311203,42.51474941,182.06,182.02,20.0]
[1734686311364,42.51474941,182.06,181.97,56.25324941]
[1734686311796,42.51474941,182.04,181.97,13.7385]
[1734686311984,42.51474941,182.04,181.97,56.25324941]
[1734686312568,42.51474941,182.06,181.97,56.25324941]
[1734686312793,42.51474941,182.04,181.97,56.25324941]
[1734686313099,42.51474941,182.0,181.93,13.7415]
[1734686313407,42.51474941,181.98,181.89,68.55704941]
[1734686313570,42.51474941,181.98,181.9,1.91670686]
[1734686313776,42.51474941,182.0,181.93,42.51474941]
[1734686313991,42.51474941,182.02,181.95,42.51474941]
[1734686314187,42.51474941,182.04,181.95,42.51474941]
[1734686314389,42.51474941,182.02,181.93,42.51474941]
[1734686314588,42.51474941,182.02,181.95,42.51474941]
[1734686314901,0.7051352,182.11,181.95,42.51474941]
[1734686314902,42.51474941,182.04,181.95,42.51474941]
[1734686315069,42.51474941,182.04,181.98,20.0]
[1734686315269,42.51474941,182.02,181.93,56.25564941]
[1734686315505,42.51474941,182.0,181.93,13.7409]
[1734686315866,42.51474941,182.0,181.91,42.51474941]
[1734686316072,42.51474941,182.04,181.95,42.51474941]
[1734686316299,42.51474941,182.02,181.95,42.51474941]
[1734686316493,42.51474941,182.02,181.93,42.51474941]
[1734686316874,42.51474941,182.02,181.95,42.51474941]
[1734686317381,42.51474941,182.02,181.95,56.25414941]
[1734686317905,42.51474941,182.0,181.93,42.51474941]
[1734686318073,42.51474941,181.96,181.86,14.5707414]
[1734686318273,42.51474941,181.94,181.86,13.7463]
[1734686318900,42.51474941,181.95,181.88,42.51474941]
[1734686319095,42.51474941,181.95,181.87,42.51474941]
[1734686319481,42.51474941,181.98,181.9,42.51474941]
[1734686319678,42.51474941,181.96,181.89,42.51474941]
[1734686319880,42.51474941,181.96,181.88,42.51474941]
[1734686320099,42.51474941,181.95,181.87,42.51474941]
[1734686320401,42.51474941,181.94,181.87,42.51474941]
[1734686320709,42.51474941,181.9,181.83,42.51474941]
[1734686320875,42.51474941,181.85,181.78,50.83134941]
[1734686321174,42.51474941,181.85,181.74,27.5117]
[1734686321175,20.0,181.9,181.73,13.087]
[1734686321374,13.7423,181.93,181.74,13.7554]
[1734686321571,20.0,181.94,181.75,0.82506323]
[1734686321776,20.0,181.94,181.74,13.7554]
[1734686321777,20.0,181.9,181.74,13.7554]
[1734686321989,20.0,181.86,181.7,13.7588]
[1734686322201,42.51474941,181.78,181.7,42.51474941]
[1734686322727,42.51474941,181.74,181.67,42.51474941]
[1734686322885,42.51474941,181.73,181.67,42.51474941]
[1734686323082,22.21965159,181.86,181.66,13.7616]
[1734686323083,42.51474941,181.76,181.69,42.51474941]
[1734686323382,42.51474941,181.8,181.71,42.51474941]
[1734686323587,42.51474941,181.78,181.7,13.7586]
[1734686323810,42.51474941,181.74,181.66,42.51474941]
[1734686324200,42.51474941,181.7,181.64,42.51474941]
[1734686324405,42.51474941,181.8,181.62,42.51474941]
[1734686324406,42.51474941,181.68,181.62,42.51474941]
[1734686324594,42.51474941,181.68,181.61,13.7654]
[1734686325223,42.51474941,181.7,181.62,42.51474941]
[1734686325515,42.51474941,181.8,181.69,42.51474941]
[1734686325688,42.51474941,181.8,181.72,42.51474941]
[1734686325884,42.51474941,181.78,181.7,42.51474941]
[1734686326521,42.51474941,181.76,181.71,20.0]
[1734686326705,42.51474941,181.76,181.68,56.27454941]
[1734686326892,42.51474941,181.78,181.71,20.0]
[1734686327086,42.51474941,181.76,181.68,56.27454941]
[1734686327700,42.51474941,181.72,181.63,13.7635]
[1734686328006,42.51474941,181.72,181.64,42.51474941]
[1734686328401,42.51474941,181.74,181.66,42.51474941]
[1734686328711,42.51474941,181.72,181.64,42.51474941]
[1734686328922,42.51474941,181.7,181.63,13.7635]
[1734686329813,42.51474941,181.68,181.63,13.7635]
[1734686330000,42.51474941,181.66,181.59,13.767]
[1734686330223,42.51474941,181.66,181.57,13.087]
[1734686330224,42.51474941,181.62,181.54,42.51474941]
[1734686330540,42.51474941,181.6,181.54,13.7703]
[1734686331009,42.51474941,181.58,181.54,13.7703]
[1734686331211,20.0,181.8,181.5,77.94721911]
[1734686331512,42.51474941,181.66,181.58,42.51474941]
[1734686331710,42.51474941,181.66,181.6,0.12549]
[1734686332133,42.51474941,181.66,181.61,13.7657]
[1734686332323,42.51474941,181.64,181.56,43.34045058]
[1734686332526,42.51474941,181.6,181.52,49.82728066]
[1734686332725,42.51474941,181.6,181.52,42.51474941]
[1734686333032,42.51474941,181.69,181.6,0.12549]
[1734686333232,42.51474941,181.69,181.62,42.51474941]
[1734686333435,42.51474941,181.73,181.64,42.64023941]
[1734686333629,42.51474941,181.71,181.64,0.12549]
[1734686334139,42.51474941,181.78,181.7,0.12549]
[1734686334448,42.51474941,181.77,181.69,56.27444941]
[1734686334657,42.51474941,181.71,181.65,12.7456]
[1734686334816,42.51474941,181.71,181.65,26.508]
[1734686335011,42.51474941,181.69,181.6,42.51474941]
[1734686335238,42.51474941,181.65,181.61,13.7654]
[1734686335517,42.51474941,181.63,181.57,13.7685]
[1734686336647,42.51474941,181.67,181.58,42.51474941]
[1734686336825,42.51474941,181.65,181.57,13.7685]
[1734686337026,42.51474941,181.65,181.57,56.28324941]
[1734686337647,42.51474941,181.68,181.59,42.51474941]
[1734686337837,42.51474941,181.7,181.63,42.51474941]
[1734686338044,42.51474941,181.72,181.64,23.776884]
[1734686338222,42.51474941,181.72,181.67,20.0]
[1734686338631,42.51474941,181.76,181.71,20.0]
[1734686338856,42.51474941,181.8,181.65,42.51474941]
[1734686338857,42.51474941,181.74,181.65,42.51474941]
[1734686339024,42.51474941,181.72,181.69,20.0]
[1734686339219,42.51474941,181.74,181.69,20.0]
[1734686339748,42.51474941,181.74,181.68,13.7602]
[1734686339949,42.51474941,181.72,181.68,13.7602]
[1734686340145,42.51474941,181.74,181.68,13.7602]
[1734686340625,42.51474941,181.72,181.68,13.7602]
[1734686340943,42.51474941,181.72,181.63,70.04284941]
[1734686340944,42.51474941,181.72,181.64,13.7632]
[1734686341144,42.51474941,181.66,181.56,12.5054]
[1734686341387,42.51474941,181.61,181.51,42.51474941]
[1734686341651,42.51474941,181.61,181.52,41.317]
[1734686342132,42.51474941,181.55,181.52,13.7725]
[1734686342333,42.51474941,181.53,181.48,13.7752]
[1734686342638,42.51474941,181.49,181.44,13.7782]
[1734686343034,42.51474941,181.53,181.44,13.7782]
[1734686343241,42.51474941,181.53,181.45,42.51474941]
[1734686343554,42.51474941,181.57,181.49,42.51474941]
[1734686343849,42.51474941,181.59,181.51,42.51474941]
[1734686344156,42.51474941,181.57,181.5,13.7741]
[1734686344630,42.51474941,181.63,181.56,20.0]
[1734686344822,42.51474941,181.65,181.6,20.0]
[1734686345567,42.51474941,181.61,181.51,23.776884]
[1734686345761,42.51474941,181.62,181.54,13.771]
[1734686345986,42.51474941,181.62,181.55,42.51474941]
[1734686346191,42.51474941,181.67,181.59,42.51474941]
[1734686346789,42.51474941,181.69,181.61,42.51474941]
[1734686347099,12.127,181.78,181.57,62.51474941]
[1734686347100,42.51474941,181.65,181.57,62.51474941]
[1734686347273,42.51474941,181.61,181.54,13.771]
[1734686347469,42.51474941,181.57,181.5,41.3222]
[1734686347713,42.51474941,181.53,181.5,13.774]
[1734686347870,42.51474941,181.55,181.5,13.774]
[1734686348200,42.51474941,181.61,181.52,42.51474941]
[1734686348412,42.51474941,181.59,181.52,42.51474941]
[1734686348707,42.51474941,181.63,181.54,42.51474941]
[1734686348918,42.51474941,181.63,181.5,13.774]
[1734686348919,42.51474941,181.65,181.56,42.51474941]
[1734686349117,42.51474941,181.63,181.54,42.51474941]
[1734686349320,42.51474941,181.61,181.52,42.51474941]
[1734686349824,42.51474941,181.59,181.5,56.28874941]
[1734686350027,42.51474941,181.57,181.5,13.774]
[1734686350221,42.51474941,181.55,181.5,13.774]
[1734686351025,42.51474941,181.53,181.46,56.29134941]
[1734686351195,42.51474941,181.51,181.46,13.7766]
[1734686351402,42.51474941,181.62,181.46,13.7766]
[1734686351403,42.51474941,181.53,181.46,13.7766]
[1734686351628,42.51474941,181.53,181.46,56.29134941]
[1734686351830,42.51474941,181.57,181.5,42.51474941]
[1734686352004,42.51474941,181.61,181.52,42.51474941]
[1734686352319,42.51474941,181.65,181.56,42.51474941]
[1734686352519,42.51474941,181.67,181.61,20.0]
[1734686352831,42.51474941,181.69,181.6,42.51474941]